bitfinex-derivatives/quotes_BNBF0:USTF0_20250115
["timestamp","ask_amount","ask_price","bid_price","bid_amount"]
[1736960055472,0.28487187,702.07,700.76,0.28540441]
[1736960057473,0.28487187,702.07,701.02,1.0580197]
[1736960058371,0.28487187,702.07,700.86,1.26962365]
[1736960058372,0.28487187,702.07,700.99,1.0580197]
[1736960059780,0.28487187,702.07,700.94,1.0580197]
[1736960060882,0.28487187,702.07,700.84,1.0580197]
[1736960061081,0.28487187,702.07,700.85,0.28536776]
[1736960067484,1.04396376,702.83,700.85,0.28536776]
[1736960067680,0.28456788,702.82,700.85,0.28536776]
[1736960078190,0.26165577,702.81,700.85,0.28536776]
[1736960078394,0.28457598,702.8,700.85,0.28536776]
[1736960080986,0.26165587,702.79,700.85,0.28536776]
[1736960081186,0.28457598,702.8,700.85,0.28536776]
[1736960092506,0.26165214,702.79,700.85,0.28536776]
[1736960093009,0.28458408,702.78,700.85,0.28536776]
[1736960093206,0.26165214,702.77,700.85,0.28536776]
[1736960093405,0.28458408,702.78,700.85,0.28536776]
[1736960095206,0.26164588,702.77,700.85,0.28536776]
[1736960096309,1.30560964,702.77,700.85,0.28536776]
[1736960096510,0.26164588,702.76,700.85,0.28536776]
[1736960097208,1.04396376,702.74,700.87,1.0580197]
[1736960097609,0.26164919,702.73,700.87,1.0580197]
[1736960097809,1.04396376,702.74,700.87,1.0580197]
[1736960098011,1.04396376,702.71,700.91,1.0580197]
[1736960099210,1.04396376,702.67,701.0,1.0580197]
[1736960099403,0.26164441,702.66,701.0,1.0580197]
[1736960099608,0.26164441,702.66,701.01,0.28530263]
[1736960099809,0.28463673,702.65,701.01,0.28530263]
[1736960100011,1.04396376,702.52,701.23,1.0580197]
[1736960101112,1.04396376,702.46,701.3,1.0580197]
[1736960102211,1.32860049,702.65,701.01,0.28530263]
[1736960102212,1.04396376,702.48,701.05,1.0580197]
[1736960103109,0.28463673,702.65,701.01,0.28530263]
[1736960103110,1.04396376,702.46,701.01,0.28530263]
[1736960104110,1.04396376,702.47,701.15,1.0580197]
[1736960105010,1.04396376,702.42,701.26,1.0580197]
[1736960106113,1.04396376,702.42,701.01,0.28530263]
[1736960106114,0.28463673,702.65,701.01,0.28530263]
[1736960114614,0.28463673,702.65,701.01,1.34332233]
[1736960114615,1.04396376,702.63,701.01,1.34332233]
[1736960115113,0.28464888,702.62,701.01,1.34332233]
[1736960115710,1.04396376,702.61,701.01,0.28530263]
[1736960116013,0.28465698,702.6,701.01,0.28530263]
[1736960117915,1.04396376,702.59,701.05,1.0580197]
[1736960118116,1.04396376,702.59,701.06,0.28528228]
[1736960118919,0.28465698,702.6,701.06,0.28528228]
[1736960118920,1.04396376,702.58,701.06,0.28528228]
[1736960119620,0.28465698,702.6,701.06,0.28528228]
[1736960119621,1.04396376,702.57,701.06,0.28528228]
[1736960121017,1.04396376,702.57,701.16,1.0580197]
[1736960121222,1.04396376,702.57,701.17,0.28523753]
[1736960121923,1.04396376,702.54,701.28,1.0580197]
[1736960122817,1.04396376,702.55,701.29,1.0580197]
[1736960123819,1.04396376,702.52,701.34,1.0580197]
[1736960124926,1.04396376,702.49,701.34,1.0580197]
[1736960126227,1.04396376,702.48,701.33,1.0580197]
[1736960126928,1.04396376,702.49,701.35,1.0580197]
[1736960128030,0.28465698,702.6,701.27,1.0580197]
[1736960128225,0.28465698,702.6,701.28,0.28519279]
[1736960140638,0.28465698,702.6,701.29,1.0580197]
[1736960140837,0.28465698,702.6,701.3,0.28518465]
[1736960142544,0.28465698,702.6,701.34,1.0580197]
[1736960142736,0.28465698,702.6,701.35,0.28516432]
[1736960162353,0.28465698,702.6,701.4,1.0580197]
[1736960163552,0.28465698,702.6,701.35,0.28516432]
[1736960171751,0.28465698,702.6,701.38,1.0580197]
[1736960172457,0.28465698,702.6,701.22,1.26962365]
[1736960172458,0.28465698,702.6,701.39,1.34316776]
[1736960172659,0.28465698,702.6,701.4,0.28514399]
[1736960173464,0.28465698,702.6,701.45,1.0580197]
[1736960174352,0.28465698,702.6,701.4,0.28514399]
[1736960218392,0.26170245,702.59,701.4,0.28514399]
[1736960219088,1.04396376,702.52,701.4,0.28514399]
[1736960219293,0.26170245,702.51,701.4,0.28514399]
[1736960219493,0.26172058,702.5,701.4,0.28514399]
[1736960219693,0.26172058,702.51,701.4,0.28514399]
[1736960219888,0.26172058,702.5,701.4,0.28514399]
[1736960220092,1.04396376,702.45,701.4,0.28514399]
[1736960220487,0.26172202,702.44,701.4,0.28514399]
[1736960220891,1.04396376,702.42,701.4,0.28514399]
[1736960221094,0.26172202,702.41,701.4,0.28514399]
[1736960222490,1.04396376,702.39,701.4,0.28514399]
[1736960222687,0.26172202,702.38,701.4,0.28514399]
[1736960223593,1.04396376,702.4,701.4,0.28514399]
[1736960223594,0.26172202,702.37,701.4,0.28514399]
[1736960223789,0.26172202,702.36,701.4,0.28514399]
[1736960223994,0.26172202,702.35,701.4,0.28514399]
[1736960224193,0.26173473,702.34,701.4,0.28514399]
[1736960224394,0.26173473,702.33,701.4,0.28514399]
[1736960224695,1.04396376,702.39,701.4,0.28514399]
[1736960224894,0.26173289,702.38,701.4,0.28514399]
[1736960225795,0.26173289,702.37,701.4,0.28514399]
[1736960225996,0.26173289,702.4,701.4,0.28514399]
[1736960226196,0.26173289,702.39,701.4,0.28514399]
[1736960226391,0.26173289,702.38,701.4,0.28514399]
[1736960226695,0.26173289,702.37,701.4,0.28514399]
[1736960226890,0.26173289,702.4,701.4,0.28514399]
[1736960227093,0.26173289,702.39,701.4,0.28514399]
[1736960227294,0.26173289,702.42,701.4,0.28514399]
[1736960227494,0.26173289,702.41,701.4,0.28514399]
[1736960227691,1.04396376,702.43,701.4,0.28514399]
[1736960228096,1.04396376,702.46,701.4,0.28514399]
[1736960229098,0.28465698,702.6,701.4,0.28514399]
[1736960229395,0.28465698,702.6,700.43,1.0580197]
[1736960229597,0.28465698,702.6,700.45,0.28553073]
[1736960234902,0.28465698,702.6,700.53,1.0580197]
[1736960235097,0.28465698,702.6,700.63,0.28545737]
[1736960237704,0.26175188,702.59,700.63,0.28545737]
[1736960238107,1.04396376,702.55,700.63,0.28545737]
[1736960238405,0.26175516,702.54,700.63,0.28545737]
[1736960238606,0.2846894,702.52,700.63,0.28545737]
[1736960238807,1.04396376,702.49,700.66,1.0580197]
[1736960239008,1.04396376,702.49,700.68,0.285437]
[1736960239907,0.2846894,702.52,700.77,1.0580197]
[1736960241010,0.2846894,702.52,700.79,0.2853922]
[1736960241611,0.2617206,702.51,700.79,0.2853922]
[1736960242911,0.28470156,702.49,700.79,0.2853922]
[1736960243111,0.2617206,702.48,700.79,0.2853922]
[1736960243304,0.28470966,702.47,700.8,1.64628949]
[1736960243611,0.26171048,702.46,700.82,0.28537998]
[1736960244009,0.28470966,702.47,700.83,2.50062999]
[1736960244210,0.28470966,702.47,700.88,1.0580197]
[1736960244408,0.28470966,702.47,700.89,1.64612766]
[1736960244606,0.28470966,702.47,700.88,1.0580197]
[1736960244805,0.28470966,702.47,700.9,0.28534741]
[1736960245210,0.28470966,702.47,700.91,1.6468451]
[1736960245412,0.28470966,702.47,700.96,1.0580197]
[1736960245708,0.28470966,702.47,700.97,0.28531891]
[1736960246309,0.28470966,702.47,700.98,1.0580197]
[1736960246510,0.28470966,702.47,700.99,0.28531077]
[1736960247314,0.28470966,702.47,701.04,1.0580197]
[1736960248315,0.28470966,702.47,701.05,0.28528635]
[1736960251517,0.28470966,702.47,701.06,1.0580197]
[1736960251917,0.28470966,702.47,701.07,0.28527821]
[1736960252614,0.28470966,702.47,701.07,1.34329791]
[1736960254519,0.28470966,702.47,701.07,0.28527821]
[1736960273038,0.26171784,702.46,701.07,0.28527821]
[1736960273230,0.28471777,702.45,701.07,0.28527821]
[1736960275539,0.26171917,702.44,701.07,0.28527821]
[1736960275837,0.28472588,702.43,701.07,0.28527821]
[1736960276039,0.26171917,702.42,701.07,0.28527821]
[1736960276239,1.30568293,702.42,701.07,0.28527821]
[1736960276439,0.26172101,702.41,701.07,0.28527821]
[1736960277342,0.26172351,702.4,701.07,0.28527821]
[1736960278342,0.2617236,702.39,701.07,0.28527821]
[1736960278541,1.30568736,702.38,701.07,0.28527821]
[1736960278741,1.04396376,702.38,701.07,0.28527821]
[1736960279340,0.2847502,702.37,701.07,0.28527821]
[1736960279542,0.54650018,702.37,701.07,0.28527821]
[1736960280341,0.26174998,702.36,701.07,0.28527821]
[1736960280544,0.54650423,702.36,701.07,0.28527821]
[1736960280749,0.26174998,702.35,701.07,0.28527821]
[1736960281047,1.30571374,702.35,701.07,0.28527821]
[1736960281250,1.04396376,702.35,701.07,0.28527821]
[1736960281451,0.2617471,702.34,701.07,0.28527821]
[1736960282448,0.28475425,702.36,701.07,0.28527821]
[1736960282650,0.26174678,702.35,701.07,0.28527821]
[1736960282849,0.28475425,702.36,701.07,0.28527821]
[1736960297457,1.32871801,702.36,701.07,0.28527821]
[1736960298257,1.04396376,702.35,701.07,0.28527821]
[1736960298457,0.28476236,702.34,701.07,0.28527821]
[1736960315257,0.28476236,702.34,701.08,1.0580197]
[1736960315461,0.28476236,702.34,701.09,0.28527007]
[1736960322674,0.28476236,702.34,701.1,2.50477614]
[1736960322869,0.28476236,702.34,701.11,2.50477551]
[1736960323171,0.28476236,702.34,701.12,2.50477551]
[1736960323373,0.28476236,702.34,701.13,2.50477551]
[1736960323570,0.28476236,702.34,701.1,3.06129295]
[1736960323571,0.28476236,702.34,701.14,2.50477551]
[1736960323772,0.28476236,702.34,701.28,1.0580197]
[1736960325470,0.28476236,702.34,701.1,0.28526601]
[1736960325471,0.28476236,702.34,701.23,1.0580197]
[1736960327472,0.28476236,702.34,701.24,1.0580197]
[1736960328267,0.28476236,702.34,701.1,0.28526601]
[1736960328268,0.28476236,702.34,701.21,1.0580197]
[1736960329276,0.28476236,702.34,701.1,0.28526601]
[1736960338176,0.28476236,702.34,701.18,1.0580197]
[1736960339282,0.28476236,702.34,701.1,0.28526601]
[1736960344580,0.26175894,702.33,701.1,0.28526601]
[1736960344884,0.28477047,702.32,701.1,0.28526601]
[1736960345085,0.26175894,702.31,701.1,0.28526601]
[1736960346082,0.28477858,702.3,701.1,0.28526601]
[1736960346283,0.26175894,702.29,701.1,0.28526601]
[1736960347083,1.3057227,702.29,701.1,0.28526601]
[1736960347284,0.26175894,702.28,701.1,0.28526601]
[1736960347686,0.26175894,702.28,700.76,1.0580197]
[1736960348381,1.04396376,702.26,700.5,1.0580197]
[1736960348587,1.04396376,702.26,700.51,0.28550627]
[1736960348588,0.26175894,702.25,700.51,0.28550627]
[1736960349289,1.04396376,702.21,700.51,0.28550627]
[1736960349588,0.26175894,702.2,700.51,0.28550627]
[1736960350688,0.26175894,702.19,700.51,0.28550627]
[1736960350890,0.26175894,702.24,700.51,0.28550627]
[1736960351084,1.04396376,702.21,700.51,0.28550627]
[1736960351491,0.26175894,702.2,700.51,0.28550627]
[1736960352387,0.26175894,702.29,700.51,0.28550627]
[1736960352592,0.26175894,702.28,700.51,0.28550627]
[1736960352886,0.26175894,702.27,700.51,0.28550627]
[1736960353090,0.26175894,702.29,700.51,0.28550627]
[1736960353292,0.28477858,702.3,700.51,0.28550627]
[1736960353293,0.26175894,702.28,700.51,0.28550627]
[1736960353491,0.26175894,702.27,700.51,0.28550627]
[1736960353692,0.26175894,702.29,700.51,0.28550627]
[1736960356292,0.26188996,702.28,700.51,0.28550627]
[1736960356488,0.26188996,702.29,700.51,0.28550627]
[1736960356688,0.26188996,702.28,700.51,0.28550627]
[1736960356886,0.26188996,702.29,700.51,0.28550627]
[1736960357088,0.26188996,702.28,700.51,0.28550627]
[1736960357289,0.26188996,702.29,700.51,0.28550627]
[1736960357493,0.26188996,702.28,700.51,0.28550627]
[1736960357693,0.26188996,702.29,700.51,0.28550627]
[1736960357992,0.26188996,702.28,700.51,0.28550627]
[1736960358196,0.26188996,702.29,700.51,0.28550627]
[1736960358498,0.26188996,702.28,700.51,0.28550627]
[1736960358695,0.26188996,702.29,700.51,0.28550627]
[1736960358891,0.26188996,702.28,700.51,0.28550627]
[1736960359096,0.26188996,702.29,700.51,0.28550627]
[1736960359296,0.26188332,702.28,700.51,0.28550627]
[1736960359694,0.26188332,702.27,700.51,0.28550627]
[1736960359996,0.26188332,702.26,700.51,0.28550627]
[1736960360191,0.26186476,702.29,700.51,0.28550627]
[1736960360394,0.26186476,702.25,700.51,0.28550627]
[1736960360599,0.26186476,702.28,700.51,0.28550627]
[1736960360802,0.26186476,702.24,700.51,0.28550627]
[1736960360997,0.26186476,702.23,700.51,0.28550627]
[1736960361197,0.26186476,702.22,700.51,0.28550627]
[1736960361394,0.26186476,702.21,700.51,0.28550627]
[1736960361700,0.26186476,702.29,700.51,0.28550627]
[1736960361900,0.26186476,702.28,700.51,0.28550627]
[1736960362101,0.26186476,702.27,700.51,0.28550627]
[1736960362300,0.28477858,702.3,700.51,0.28550627]
[1736960362602,0.26185264,702.29,700.51,0.28550627]
[1736960365205,0.2618514,702.28,700.51,0.28550627]
[1736960365501,0.2618514,702.27,700.51,0.28550627]
[1736960365704,0.28477858,702.3,700.51,0.28550627]
[1736960365705,0.2618514,702.29,700.51,0.28550627]
[1736960366006,0.2618514,702.28,700.51,0.28550627]
[1736960366305,0.2618514,702.27,700.51,0.28550627]
[1736960366505,0.2618514,702.26,700.51,0.28550627]
[1736960366700,0.2618514,702.25,700.51,0.28550627]
[1736960366901,0.2618514,702.24,700.51,0.28550627]
[1736960367106,0.2618514,702.23,700.51,0.28550627]
[1736960367307,0.2618514,702.22,700.51,0.28550627]
[1736960367506,0.2618514,702.21,700.51,0.28550627]
[1736960367709,0.2618514,702.2,700.51,0.28550627]
[1736960367908,0.28477858,702.3,700.51,0.28550627]
[1736960368102,0.26186329,702.29,700.51,0.28550627]
[1736960370310,0.28479074,702.27,700.51,0.28550627]
[1736960370509,0.26186329,702.26,700.51,0.28550627]
[1736960371210,0.26186082,702.25,700.51,0.28550627]
[1736960371410,0.26186082,702.26,700.51,0.28550627]
[1736960371612,0.26186082,702.25,700.51,0.28550627]
[1736960371910,0.26186082,702.24,700.51,0.28550627]
[1736960372110,0.26186082,702.23,700.51,0.28550627]
[1736960372310,0.26186082,702.26,700.51,0.28550627]
[1736960372510,0.26186082,702.22,700.51,0.28550627]
[1736960372806,0.26186082,702.25,700.51,0.28550627]
[1736960373010,0.26186082,702.24,700.51,0.28550627]
[1736960373209,0.26186082,702.26,700.51,0.28550627]
[1736960373511,0.26186082,702.25,700.51,0.28550627]
[1736960373810,0.26186217,702.24,700.51,0.28550627]
[1736960374010,0.28481102,702.22,700.51,0.28550627]
[1736960374209,0.26186217,702.21,700.51,0.28550627]
[1736960374410,0.28481913,702.2,700.51,0.28550627]
[1736960374611,0.26186217,702.19,700.51,0.28550627]
[1736960374912,0.28482725,702.18,700.51,0.28550627]
[1736960375111,0.26186217,702.17,700.51,0.28550627]
[1736960375313,1.32879912,702.16,700.51,0.28550627]
[1736960375613,0.54670159,702.15,700.51,0.28550627]
[1736960375812,0.54670564,702.14,700.51,0.28550627]
[1736960376012,0.5467097,702.13,700.51,0.28550627]
[1736960376311,0.54671376,702.12,700.51,0.28550627]
[1736960376611,1.04396376,702.16,700.51,0.28550627]
[1736960376612,0.54670453,702.11,700.51,0.28550627]
[1736960376911,0.26184889,702.1,700.51,0.28550627]
[1736960379611,0.2618318,702.09,700.51,0.28550627]
[1736960379809,0.28485564,702.11,700.51,0.28550627]
[1736960380010,0.26183077,702.1,700.51,0.28550627]
[1736960380916,1.04396376,702.07,700.52,1.0580197]
[1736960381110,1.04396376,702.07,700.53,0.28549812]
[1736960381808,0.28485564,702.11,700.53,0.28549812]
[1736960381809,1.04396376,702.04,700.55,1.0580197]
[1736960382013,1.04396376,702.04,700.56,0.28548589]
[1736960382617,1.04396376,702.03,700.57,1.0580197]
[1736960382809,1.04396376,702.03,700.58,0.28547774]
[1736960384217,1.04396376,702.05,700.58,0.28547774]
[1736960385109,1.04396376,702.04,700.58,0.28547774]
[1736960386318,1.04396376,702.01,700.6,1.0580197]
[1736960386520,1.04396376,702.01,700.61,0.28546552]
[1736960387412,1.04396376,702.01,700.62,1.0580197]
[1736960387614,1.04396376,702.01,700.63,0.28545737]
[1736960388015,1.04396376,702.03,700.63,0.28545737]
[1736960390315,0.28485564,702.11,700.63,0.28545737]
[1736960390316,1.04396376,702.01,700.63,0.28545737]
[1736960391223,1.04396376,702.06,700.63,0.28545737]
[1736960394018,1.04396376,702.03,700.63,0.28545737]
[1736960396122,1.04396376,701.98,700.63,1.34347707]
[1736960397031,0.28485564,702.11,700.63,1.34347707]
[1736960397032,1.04396376,701.97,700.64,1.0580197]
[1736960398025,1.04396376,701.98,700.65,1.0580197]
[1736960398726,1.04396376,702.05,700.63,0.28545737]
[1736960399626,1.04396376,702.06,700.63,0.28545737]
[1736960400725,1.04396376,702.05,700.63,0.28545737]
[1736960402121,0.28485564,702.11,700.63,0.28545737]
[1736960402930,1.04396376,702.09,700.63,0.28545737]
[1736960403729,1.04396376,702.1,700.63,0.28545737]
[1736960404727,0.28485564,702.11,700.63,0.28545737]
[1736960404728,1.04396376,702.06,700.7,1.0580197]
[1736960405529,1.04396376,702.06,700.63,0.28545737]
[1736960405530,1.04396376,702.07,700.73,1.0580197]
[1736960406625,1.04396376,702.0,700.86,1.0580197]
[1736960408131,0.28485564,702.11,700.63,0.28545737]
[1736960408132,1.04396376,701.97,700.84,1.0580197]
[1736960409323,1.04396376,701.92,700.78,1.0580197]
[1736960409932,1.04396376,701.98,700.75,1.0580197]
[1736960411833,0.28485564,702.11,700.76,1.0580197]
[1736960411834,1.04396376,701.96,700.76,1.0580197]
[1736960413432,0.28485564,702.11,700.66,1.0580197]
[1736960413433,1.04396376,701.99,700.66,1.0580197]
[1736960414139,1.04396376,702.01,700.68,1.0580197]
[1736960415238,0.28485564,702.11,700.7,1.0580197]
[1736960415239,1.04396376,701.99,700.7,1.0580197]
[1736960416040,1.04396376,702.0,700.72,1.0580197]
[1736960417238,1.04396376,702.06,700.75,1.0580197]
[1736960418643,1.04396376,702.07,700.85,1.0580197]
[1736960419540,0.28485564,702.11,700.63,0.28545737]
[1736960419541,1.04396376,702.08,700.63,0.28545737]
[1736960419940,0.28485564,702.11,700.63,0.28545737]
[1736960421241,1.05383282,702.01,700.63,0.28545737]
[1736960421439,0.28490028,702.0,700.63,0.28545737]
[1736960422341,1.3387331,702.0,700.63,0.28545737]
[1736960423536,0.28490028,702.0,700.63,0.28545737]
[1736960424043,0.27954819,702.0,700.63,0.28545737]
[1736960424543,0.27954819,702.0,700.65,1.06700178]
[1736960424939,0.27954819,702.0,700.66,0.28544515]
[1736960425343,0.27954819,702.0,700.67,1.06700178]
[1736960426545,0.27954819,702.0,700.75,1.06700178]
[1736960427444,0.27954819,702.0,700.69,1.06700178]
[1736960427645,0.27954819,702.0,700.7,1.65402146]
[1736960427843,0.27954819,702.0,700.71,0.85480563]
[1736960428040,0.27954819,702.0,700.69,1.06700178]
[1736960428240,0.27954819,702.0,700.86,1.06700178]
[1736960429347,0.27954819,702.0,700.67,0.28544107]
[1736960433244,0.27954819,702.0,700.68,1.06700178]
[1736960434248,0.27954819,702.0,700.67,1.35244285]
[1736960435450,0.27954819,702.0,700.68,1.65289359]
[1736960435645,0.27954819,702.0,700.69,0.85483429]
[1736960435843,0.27954819,702.0,700.7,1.93832244]
[1736960436046,0.27954819,702.0,700.81,1.06700178]
[1736960437145,0.27954819,702.0,700.78,1.06700178]
[1736960438052,0.27954819,702.0,700.7,0.28542885]
[1736960456067,0.26188009,701.99,700.7,0.28542885]
[1736960456268,0.27954819,702.0,700.7,0.28542885]
[1736960456464,0.26187522,701.99,700.7,0.28542885]
[1736960456664,0.26187909,701.98,700.7,0.28542885]
[1736960456864,0.26187909,701.99,700.7,0.28542885]
[1736960457071,0.27954819,702.0,700.7,0.28542885]
[1736960457468,0.26187731,701.99,700.7,0.28542885]
[1736960457669,0.27954819,702.0,700.7,0.28542885]
[1736960458466,0.2618711,701.99,700.7,0.28542885]
[1736960458671,0.27954819,702.0,700.7,0.28542885]
[1736960459068,0.26187491,701.99,700.7,0.28542885]
[1736960459468,0.27954819,702.0,700.7,0.28542885]
[1736960459769,0.26188033,701.99,700.7,0.28542885]
[1736960460169,0.27954819,702.0,700.7,0.28542885]
[1736960460369,0.26187765,701.99,700.7,0.28542885]
[1736960461373,0.27954819,702.0,700.7,0.28542885]
[1736960461673,0.26187681,701.99,700.7,0.28542885]
[1736960463273,0.27954819,702.0,700.7,0.28542885]
[1736960466881,0.26190779,701.99,700.7,0.28542885]
[1736960467081,0.27954819,702.0,700.7,0.28542885]
[1736960488796,1.33338101,702.0,700.7,0.28542885]
[1736960489495,1.05383282,701.97,700.7,0.28542885]
[1736960490294,1.05383282,701.96,700.7,0.28542885]
[1736960492094,1.05383282,701.97,700.7,0.28542885]
[1736960493093,0.27954819,702.0,700.7,0.28542885]
[1736960496001,0.27954819,702.0,700.81,1.06700178]
[1736960497501,0.27954819,702.0,700.8,1.06700178]
[1736960498508,0.27954819,702.0,700.84,1.06700178]
[1736960498808,0.27954819,702.0,700.85,0.28536776]
[1736960499501,0.27954819,702.0,700.87,1.06700178]
[1736960500110,1.05383282,702.32,700.87,1.06700178]
[1736960500405,0.72243671,703.02,700.85,0.28536776]
[1736960500406,1.05383282,702.55,700.85,0.28536776]
[1736960500603,0.28468129,702.54,700.85,0.28536776]
[1736960502711,0.28468129,702.54,700.86,1.6476987]
[1736960502907,0.28468129,702.54,700.86,4.41921221]
[1736960503110,0.28468129,702.54,700.86,2.77151351]
[1736960503513,0.28468129,702.54,700.91,1.06328198]
[1736960504313,0.28468129,702.54,700.85,0.28536776]
[1736960510623,0.2616851,702.53,700.85,0.28536776]
[1736960511115,0.28468129,702.54,700.85,0.28536776]
[1736960511314,0.26169795,702.52,700.85,0.28536776]
[1736960511614,0.26169795,702.51,700.85,0.28536776]
[1736960511816,0.26169446,702.5,700.85,0.28536776]
[1736960512110,0.26169446,702.53,700.85,0.28536776]
[1736960512316,0.26169446,702.52,700.85,0.28536776]
[1736960512616,0.26169446,702.51,700.85,0.28536776]
[1736960512810,0.26169446,702.5,700.85,0.28536776]
[1736960513009,0.26169446,702.49,700.85,0.28536776]
[1736960513415,0.26169446,702.48,700.85,0.28536776]
[1736960513610,0.26169446,702.53,700.85,0.28536776]
[1736960513808,0.26169446,702.52,700.85,0.28536776]
[1736960514115,0.26169446,702.53,700.85,0.28536776]
[1736960514415,0.54638386,702.52,700.85,0.28536776]
[1736960514608,0.28469345,702.51,700.85,0.28536776]
[1736960514808,0.54638797,702.51,700.85,0.28536776]
[1736960515010,0.26169452,702.5,700.85,0.28536776]
[1736960515811,0.28470156,702.49,700.85,0.28536776]
[1736960516017,0.26169452,702.48,700.85,0.28536776]
[1736960517420,0.28470156,702.49,700.85,0.28536776]
[1736960523929,0.26170311,702.48,700.85,0.28536776]
[1736960525026,0.26171572,702.47,700.85,0.28536776]
[1736960525231,0.28471372,702.46,700.85,0.28536776]
[1736960525532,0.26171572,702.45,700.85,0.28536776]
[1736960527929,0.2617034,702.44,700.85,0.28536776]
[1736960528133,0.28471372,702.46,700.85,0.28536776]
[1736960528134,0.2617034,702.45,700.85,0.28536776]
[1736960528434,0.28471372,702.46,700.85,0.28536776]
[1736960531734,0.28471372,702.46,700.85,1.34294558]
[1736960532530,0.28471372,702.46,700.88,1.05757782]
[1736960533530,0.28471372,702.46,700.93,1.05757782]
[1736960534433,1.04812944,702.45,700.97,1.05757782]
[1736960535636,0.28471372,702.46,700.9,1.05757782]
[1736960536335,0.28471372,702.46,700.91,1.05757782]
[1736960536636,0.28471372,702.46,700.92,0.28533926]
[1736960548341,0.26172904,702.45,700.92,0.28533926]
[1736960549451,1.04812944,702.31,700.92,1.34291708]
[1736960550345,0.28471372,702.46,700.92,0.28533926]
[1736960550346,1.04812944,702.34,700.92,0.28533926]
[1736960550552,0.28476642,702.33,700.92,0.28533926]
[1736960552250,0.28476642,702.33,700.94,1.05757782]
[1736960552449,0.28476642,702.33,700.95,0.28532705]
[1736960558655,0.28476642,702.33,700.98,1.05757782]
[1736960559457,0.28476642,702.33,700.99,1.05757782]
[1736960560558,0.28476642,702.33,701.17,1.05757782]
[1736960561556,0.28476642,702.33,701.18,1.05757782]
[1736960562361,0.28476642,702.33,701.17,1.05757782]
[1736960563161,0.28476642,702.33,701.11,1.05757782]
[1736960563357,0.28476642,702.33,701.12,0.28525787]
[1736960565467,1.04812944,702.63,701.12,0.28525787]
[1736960566263,1.04812944,702.73,701.12,1.34283569]
[1736960567163,1.04812944,702.84,701.15,1.05757782]
[1736960567363,0.54615971,702.83,701.16,1.65079367]
[1736960567564,0.26159588,702.82,701.16,1.65079367]
[1736960567764,0.26159588,702.82,701.17,2.77681182]
[1736960567958,1.30972532,702.82,701.24,1.05757782]
[1736960568164,0.26159588,702.81,701.24,1.05757782]
[1736960568359,0.28457598,702.8,701.25,0.28520499]
[1736960568659,0.26159588,702.79,701.25,0.28520499]
[1736960569767,0.26161425,702.78,701.25,0.28520499]
[1736960569963,0.26161425,702.77,701.25,0.28520499]
[1736960570161,0.26161425,702.76,701.25,0.28520499]
[1736960570464,1.33270542,702.8,701.25,0.28520499]
[1736960570663,0.28458003,702.79,701.25,0.28520499]
[1736960575472,0.2615958,702.78,701.25,0.28520499]
[1736960575866,0.26159255,702.77,701.25,0.28520499]
[1736960576169,0.26159255,702.76,701.25,0.28520499]
[1736960576362,0.26159255,702.78,701.25,0.28520499]
[1736960576568,0.26159255,702.77,701.25,0.28520499]
[1736960576768,0.28458003,702.79,701.25,0.28520499]
[1736960576971,0.26157959,702.78,701.25,0.28520499]
[1736960577473,0.28458003,702.79,701.25,0.28520499]
[1736960584471,0.26158958,702.78,701.25,0.28520499]
[1736960587173,0.28459217,702.76,701.25,0.28520499]
[1736960587375,1.04812944,702.72,701.25,0.28520499]
[1736960587575,0.546202,702.71,701.25,0.28520499]
[1736960587777,0.54620605,702.7,701.25,0.28520499]
[1736960587978,0.54628047,702.69,701.25,0.28520499]
[1736960588177,1.04812944,702.71,701.25,0.28520499]
[1736960588178,0.54628453,702.68,701.25,0.28520499]
[1736960588378,0.54628858,702.67,701.25,0.28520499]
[1736960588580,0.26165995,702.66,701.25,0.28520499]
[1736960589079,0.28463673,702.65,701.25,0.28520499]
[1736960589279,0.26165995,702.64,701.25,0.28520499]
[1736960589475,0.28464483,702.63,701.25,0.28520499]
[1736960594081,0.26164775,702.62,701.25,0.28520499]
[1736960594582,0.28464483,702.63,701.25,0.28520499]
[1736960595781,0.26164672,702.62,701.25,0.28520499]
[1736960596179,0.26166091,702.61,701.25,0.28520499]
[1736960596382,1.04812944,702.55,701.25,0.28520499]
[1736960596684,0.26166091,702.54,701.25,0.28520499]
[1736960597080,1.04812944,702.55,701.25,0.28520499]
[1736960597684,0.28468129,702.54,701.25,0.28520499]
[1736960598282,0.26172215,702.53,701.25,0.28520499]
[1736960598890,0.26172274,702.52,701.25,0.28520499]
[1736960599186,0.26172274,702.53,701.25,0.28520499]
[1736960599384,0.26172274,702.51,701.25,0.28520499]
[1736960599589,0.54641214,702.52,701.25,0.28520499]
[1736960599782,0.26172274,702.5,701.25,0.28520499]
[1736960599981,0.26172274,702.51,701.25,0.28520499]
[1736960600183,0.26172274,702.49,700.74,1.05757782]
[1736960600387,0.26172274,702.5,700.75,0.28540849]
[1736960600684,0.26172274,702.49,700.75,0.28540849]
[1736960600889,1.30985218,702.48,700.75,0.28540849]
[1736960601188,0.26172274,702.47,700.75,0.28540849]
[1736960601882,0.28471777,702.45,700.75,0.28540849]
[1736960602086,0.26172274,702.44,700.75,0.28540849]
[1736960602789,0.28472588,702.43,700.75,0.28540849]
[1736960603088,0.26172274,702.42,700.75,0.28540849]